[Event "*** Titled Tuesday 3|2 Blitz"]
[Site "Chess.com"]
[Date "2015.10.06"]
[Round "9"]
[White "jbj"]
[Black "chesstatour"]
[Result "1-0"]
[WhiteElo "2303"]
[BlackElo "1900"]
[TimeControl "180+2"]
[EndTime "18:53:04 PDT"]
[Termination "jbj won by resignation"]

1. e4 {[%clk 0:03:01.9]} 1... c6 {[%clk 0:03:00.3]} 2. d4 {[%clk 0:03:03]} 2...
d5 {[%clk 0:03:02.2]} 3. Nc3 {[%clk 0:03:04.2]} 3... dxe4 {[%clk 0:03:03]} 4.
Nxe4 {[%clk 0:03:06.1]} 4... Nf6 {[%clk 0:03:04.3]} 5. Ng3 {[%clk 0:03:06.7]}
5... h5 {[%clk 0:03:04.7]} 6. h4 {[%clk 0:03:07.2]} 6... Bg4 {[%clk 0:03:02.5]}
7. Be2 {[%clk 0:03:07.6]} 7... e6 {[%clk 0:02:58.4]} 8. Bf4 {[%clk 0:03:04.1]}
8... Bd6 {[%clk 0:02:57.6]} 9. Bxd6 {[%clk 0:03:04.2]} 9... Qxd6 {[%clk
0:02:59.5]} 10. c3 {[%clk 0:03:03.2]} 10... Nbd7 {[%clk 0:02:50.9]} 11. Qb3
{[%clk 0:03:02.1]} 11... Nb6 {[%clk 0:02:41.5]} 12. Nf3 {[%clk 0:03:00.6]} 12...
Nfd7 {[%clk 0:01:31]} 13. a4 {[%clk 0:02:51.6]} 13... O-O {[%clk 0:01:06.8]} 14.
a5 {[%clk 0:02:48.9]} 14... Nd5 {[%clk 0:01:06.4]} 15. O-O {[%clk 0:02:29]}
15... Rab8 {[%clk 0:01:00.9]} 16. Nh2 {[%clk 0:02:23.7]} 16... Qf4 {[%clk
0:00:50.5]} 17. Nxh5 {[%clk 0:02:14.1]} 17... Bxh5 {[%clk 0:00:46.4]} 18. Bxh5
{[%clk 0:02:14.6]} 18... Qxh4 {[%clk 0:00:45.7]} 19. Bf3 {[%clk 0:02:15.1]}
19... N7f6 {[%clk 0:00:38]} 20. g3 {[%clk 0:02:14.7]} 20... Qh3 {[%clk
0:00:31.6]} 21. Bg2 {[%clk 0:02:15.2]} 21... Qf5 {[%clk 0:00:32.2]} 22. c4
{[%clk 0:02:11.5]} 22... Ne7 {[%clk 0:00:27.8]} 23. Rfe1 {[%clk 0:02:12.6]}
23... Ng6 {[%clk 0:00:26.2]} 24. Nf3 {[%clk 0:02:06.3]} 24... Rfd8 {[%clk
0:00:26.8]} 25. Qc3 {[%clk 0:02:05.1]} 25... Rbc8 {[%clk 0:00:24.1]} 26. Ne5
{[%clk 0:02:04.6]} 26... Nxe5 {[%clk 0:00:15.6]} 27. Rxe5 {[%clk 0:02:02.1]}
27... Qg4 {[%clk 0:00:15.9]} 28. a6 {[%clk 0:01:39.4]} 28... bxa6 {[%clk
0:00:11.4]} 29. Rxa6 {[%clk 0:01:41.3]} 29... Qxd4 {[%clk 0:00:11.6]} 30. Qxd4
{[%clk 0:01:32.9]} 30... Rxd4 {[%clk 0:00:13.5]} 31. Rc5 {[%clk 0:01:27.3]}
31... Ng4 {[%clk 0:00:09.4]} 32. Raxc6 {[%clk 0:01:23.4]} 32... Rd1+ {[%clk
0:00:10.1]} 33. Bf1 {[%clk 0:01:24.7]} 33... Rb8 {[%clk 0:00:09.3]} 34. Rc8+
{[%clk 0:01:25.6]} 34... Rxc8 {[%clk 0:00:10]} 35. Rxc8+ {[%clk 0:01:27.5]}
35... Kh7 {[%clk 0:00:11.6]} 36. Rc7 {[%clk 0:01:28.3]} 36... Kg6 {[%clk
0:00:11.4]} 37. Rxa7 {[%clk 0:01:28.9]} 37... Ne5 {[%clk 0:00:12.6]} 38. c5
{[%clk 0:01:25.1]} 38... Nf3+ {[%clk 0:00:13]} 39. Kg2 {[%clk 0:01:25.8]} 39...
Ne1+ {[%clk 0:00:10.7]} 40. Kh3 {[%clk 0:01:26.7]} 40... Nf3 {[%clk 0:00:11.7]}
41. Bg2 {[%clk 0:01:14.2]} 41... Ng5+ {[%clk 0:00:11.9]} 42. Kh2 {[%clk
0:01:15.5]} 42... Rc1 {[%clk 0:00:07.7]} 43. f4 {[%clk 0:01:15.2]} 43... Nh7
{[%clk 0:00:05.1]} 44. b4 {[%clk 0:01:14.1]} 44... Nf6 {[%clk 0:00:06]} 45. Bf3
{[%clk 0:01:12.8]} 45... Rc2+ {[%clk 0:00:04.3]} 46. Kg1 {[%clk 0:01:14]} 46...
Rc3 {[%clk 0:00:03.9]} 47. Kf2 {[%clk 0:01:15.2]} 47... Rc2+ {[%clk 0:00:05.1]}
48. Ke1 {[%clk 0:01:14]} 48... Rc3 {[%clk 0:00:04.8]} 49. Ke2 {[%clk 0:01:15.2]}
49... Rc2+ {[%clk 0:00:05.5]} 50. Kd3 {[%clk 0:01:16.4]} 50... Rb2 {[%clk
0:00:06.3]} 51. Kc3 {[%clk 0:01:15.8]} 51... Rf2 {[%clk 0:00:06.3]} 52. Bb7
{[%clk 0:01:15.2]} 52... Re2 {[%clk 0:00:05.1]} 53. Kc4 {[%clk 0:01:14]} 53...
Re3 {[%clk 0:00:05.6]} 54. c6 {[%clk 0:01:15]} 54... Ne8 {[%clk 0:00:04.3]} 55.
Ra8 {[%clk 0:01:12.5]} 55... Nd6+ {[%clk 0:00:04.3]} 56. Kc5 {[%clk 0:01:11.5]}
56... Nf5 {[%clk 0:00:04.3]} 57. c7 {[%clk 0:01:11.2]} 57... Rc3+ {[%clk
0:00:05.4]} 58. Kb6 {[%clk 0:01:12.5]} 58... Nd6 {[%clk 0:00:03.5]} 59. c8=Q
{[%clk 0:01:12.9]} 59... Nxc8+ {[%clk 0:00:04.3]} 60. Rxc8 {[%clk 0:01:13.8]}
60... Rxg3 {[%clk 0:00:05.6]} 61. b5 {[%clk 0:01:14]} 61... Rf3 {[%clk
0:00:06.7]} 62. Bxf3 {[%clk 0:01:14.8]} 1-0

[Event "*** Titled Tuesday 3|2 Blitz"]
[Site "Chess.com"]
[Date "2015.10.06"]
[Round "9"]
[White "Gabrinsky"]
[Black "Mornar1951"]
[Result "0-1"]
[WhiteElo "2470"]
[BlackElo "2600"]
[TimeControl "180+2"]
[EndTime "18:55:26 PDT"]
[Termination "Mornar1951 won by resignation"]

1. e4 {[%clk 0:03:01.9]} 1... c5 {[%clk 0:02:59.9]} 2. Nf3 {[%clk 0:03:01.7]}
2... e6 {[%clk 0:03:01]} 3. d4 {[%clk 0:03:02.4]} 3... cxd4 {[%clk 0:03:02.9]}
4. Nxd4 {[%clk 0:03:04.1]} 4... a6 {[%clk 0:03:04.4]} 5. c4 {[%clk 0:03:05]}
5... Nf6 {[%clk 0:03:04.9]} 6. Nc3 {[%clk 0:03:06.3]} 6... Qc7 {[%clk
0:03:06.6]} 7. Qd3 {[%clk 0:03:06]} 7... d6 {[%clk 0:02:57.3]} 8. Be2 {[%clk
0:03:05]} 8... Nbd7 {[%clk 0:02:57.9]} 9. Be3 {[%clk 0:02:59]} 9... b6 {[%clk
0:02:54.9]} 10. Rc1 {[%clk 0:02:57.8]} 10... Bb7 {[%clk 0:02:55.6]} 11. f3
{[%clk 0:02:58.8]} 11... Rc8 {[%clk 0:02:52.5]} 12. O-O {[%clk 0:02:56.1]} 12...
Be7 {[%clk 0:02:52.9]} 13. b3 {[%clk 0:02:57.1]} 13... O-O {[%clk 0:02:53.7]}
14. Rfd1 {[%clk 0:02:57.1]} 14... Qb8 {[%clk 0:02:53.7]} 15. f4 {[%clk
0:02:54.3]} 15... Rfe8 {[%clk 0:02:49.3]} 16. Bf3 {[%clk 0:02:55.3]} 16... Qa8
{[%clk 0:02:48.1]} 17. g4 {[%clk 0:02:48.6]} 17... Nc5 {[%clk 0:02:48.7]} 18.
Qe2 {[%clk 0:02:38.9]} 18... Nfxe4 {[%clk 0:02:49.5]} 19. b4 {[%clk 0:02:30.4]}
19... Nxc3 {[%clk 0:02:47]} 20. Rxc3 {[%clk 0:02:32.3]} 20... Bxf3 {[%clk
0:02:40.9]} 21. Nxf3 {[%clk 0:02:29.5]} 21... Ne4 {[%clk 0:02:40.7]} 22. Rc2
{[%clk 0:02:27.7]} 22... b5 {[%clk 0:02:35.4]} 23. Rd4 {[%clk 0:02:14.3]} 23...
bxc4 {[%clk 0:02:19.3]} 24. Rdxc4 {[%clk 0:02:15]} 24... d5 {[%clk 0:02:12.6]}
25. Rc7 {[%clk 0:02:13.6]} 25... Bxb4 {[%clk 0:02:04.9]} 26. Ne5 {[%clk
0:02:12]} 26... Rxc7 {[%clk 0:02:00.6]} 27. Rxc7 {[%clk 0:02:12.7]} 27... Bd6
{[%clk 0:02:00.9]} 28. Rc6 {[%clk 0:02:06.4]} 28... Bxe5 {[%clk 0:02:01.5]} 29.
Rxa6 {[%clk 0:02:07]} 29... Qb8 {[%clk 0:01:51.4]} 30. fxe5 {[%clk 0:02:08]}
30... Qxe5 {[%clk 0:01:52]} 31. a4 {[%clk 0:02:03.7]} 31... Nc3 {[%clk
0:01:50.7]} 32. Qf3 {[%clk 0:02:00.4]} 32... d4 {[%clk 0:01:41.5]} 33. Ra8
{[%clk 0:01:59.5]} 33... Rf8 {[%clk 0:01:24.8]} 34. Rxf8+ {[%clk 0:01:56.7]}
34... Kxf8 {[%clk 0:01:26.7]} 35. Qa8+ {[%clk 0:01:41]} 35... Ke7 {[%clk
0:01:27.6]} 36. Qb7+ {[%clk 0:01:41.6]} 36... Kf6 {[%clk 0:01:23.2]} 37. Qf3+
{[%clk 0:01:42.2]} 37... Kg6 {[%clk 0:01:22.4]} 38. Bf2 {[%clk 0:01:29.4]} 38...
Nxa4 {[%clk 0:01:20.2]} 39. Qd3+ {[%clk 0:01:30.3]} 39... f5 {[%clk 0:01:20.6]}
40. Bxd4 {[%clk 0:01:29.5]} 40... Qe4 {[%clk 0:01:03.4]} 41. Qxe4 {[%clk
0:01:19.3]} 41... fxe4 {[%clk 0:01:04.2]} 42. Kf2 {[%clk 0:01:21.2]} 42... e5
{[%clk 0:00:59.8]} 43. Bxe5 {[%clk 0:01:20.2]} 43... Nb6 {[%clk 0:01:00.7]} 44.
Bd4 {[%clk 0:00:59.2]} 44... Nd5 {[%clk 0:01:01.7]} 45. h4 {[%clk 0:01:00.7]}
45... Kf7 {[%clk 0:00:58.2]} 46. Kg3 {[%clk 0:00:59.1]} 46... g6 {[%clk
0:00:56.1]} 47. h5 {[%clk 0:00:56]} 47... g5 {[%clk 0:00:49.9]} 48. Kf2 {[%clk
0:00:55.9]} 48... Nf6 {[%clk 0:00:45.7]} 49. Ke3 {[%clk 0:00:46.3]} 49... Nxg4+
{[%clk 0:00:39.2]} 50. Kxe4 {[%clk 0:00:47.6]} 50... Nh6 {[%clk 0:00:30]} 51.
Be3 {[%clk 0:00:43.9]} 51... Kf6 {[%clk 0:00:31.3]} 52. Bd4+ {[%clk 0:00:44.9]}
52... Ke6 {[%clk 0:00:32.6]} 53. Be3 {[%clk 0:00:44.7]} 53... Nf7 {[%clk
0:00:33.8]} 54. Bd4 {[%clk 0:00:40.9]} 54... Nd6+ {[%clk 0:00:33.7]} 55. Kf3
{[%clk 0:00:35.9]} 55... Kf5 {[%clk 0:00:34.9]} 56. Be3 {[%clk 0:00:32.1]} 56...
Ne4 {[%clk 0:00:34.8]} 57. Bc1 {[%clk 0:00:28.9]} 57... Nf6 {[%clk 0:00:34.7]}
58. h6 {[%clk 0:00:26.5]} 58... Ng8 {[%clk 0:00:35.5]} 59. Kg3 {[%clk
0:00:22.2]} 59... Nxh6 {[%clk 0:00:36.5]} 60. Bd2 {[%clk 0:00:24.1]} 60... Nf7
{[%clk 0:00:34.8]} 61. Bc1 {[%clk 0:00:24.1]} 61... h6 {[%clk 0:00:35.8]} 62.
Bd2 {[%clk 0:00:25]} 62... h5 {[%clk 0:00:37]} 63. Bc1 {[%clk 0:00:25.8]} 63...
h4+ {[%clk 0:00:37.4]} 64. Kh3 {[%clk 0:00:27.4]} 64... Kg6 {[%clk 0:00:37.8]}
65. Kg4 {[%clk 0:00:18.4]} 65... Ne5+ {[%clk 0:00:38]} 66. Kh3 {[%clk
0:00:19.6]} 66... Kh5 {[%clk 0:00:39]} 67. Bd2 {[%clk 0:00:18.4]} 67... Nd3
{[%clk 0:00:37.8]} 68. Be3 {[%clk 0:00:19]} 68... Nf4+ {[%clk 0:00:38.5]} 69.
Kh2 {[%clk 0:00:20.2]} 69... Kg4 {[%clk 0:00:39.2]} 70. Bf2 {[%clk 0:00:21.6]}
70... Kf3 {[%clk 0:00:39.6]} 71. Be1 {[%clk 0:00:21.7]} 71... Nd3 {[%clk
0:00:40]} 72. Bc3 {[%clk 0:00:22.2]} 72... g4 {[%clk 0:00:40.8]} 73. Bf6 {[%clk
0:00:15.5]} 73... h3 {[%clk 0:00:41.2]} 74. Bh4 {[%clk 0:00:15.5]} 74... Nf4
{[%clk 0:00:38.6]} 75. Bg3 {[%clk 0:00:16.1]} 75... Ng6 {[%clk 0:00:39]} 76. Bd6
{[%clk 0:00:17]} 76... Nh4 {[%clk 0:00:33.9]} 77. Be7 {[%clk 0:00:15.5]} 77...
Ng2 {[%clk 0:00:33.4]} 78. Bd6 {[%clk 0:00:15.8]} 78... Nf4 {[%clk 0:00:33.7]}
79. Bc5 {[%clk 0:00:15.4]} 79... g3+ {[%clk 0:00:34.9]} 80. Kh1 {[%clk 0:00:17]}
80... Nd3 {[%clk 0:00:31.1]} 81. Bb6 {[%clk 0:00:10.5]} 81... Nf2+ {[%clk
0:00:31.7]} 82. Bxf2 {[%clk 0:00:11.5]} 82... gxf2 {[%clk 0:00:33.6]} 83. Kh2
{[%clk 0:00:11.3]} 83... Ke2 {[%clk 0:00:30.3]} 84. Kxh3 {[%clk 0:00:11.1]}
84... f1=Q+ {[%clk 0:00:31.5]} 0-1

[Event "*** Titled Tuesday 3|2 Blitz"]
[Site "Chess.com"]
[Date "2015.10.06"]
[Round "9"]
[White "chess960now"]
[Black "Assasin14"]
[Result "1-0"]
[WhiteElo "1985"]
[BlackElo "1747"]
[TimeControl "180+2"]
[EndTime "18:55:29 PDT"]
[Termination "chess960now won by checkmate"]

1. c4 {[%clk 0:03:01.9]} 1... c6 {[%clk 0:03:00.2]} 2. g3 {[%clk 0:02:59.8]}
2... Nf6 {[%clk 0:02:58.9]} 3. Bg2 {[%clk 0:03:00.6]} 3... d5 {[%clk 0:02:58.5]}
4. Nf3 {[%clk 0:03:01.2]} 4... Bf5 {[%clk 0:02:43.4]} 5. O-O {[%clk 0:02:43.8]}
5... e6 {[%clk 0:02:40.9]} 6. b3 {[%clk 0:02:22.9]} 6... Be7 {[%clk 0:02:34.4]}
7. Bb2 {[%clk 0:02:23.7]} 7... O-O {[%clk 0:02:34.4]} 8. d3 {[%clk 0:02:24.6]}
8... Nbd7 {[%clk 0:02:33.4]} 9. Nbd2 {[%clk 0:02:25.3]} 9... h6 {[%clk 0:02:34]}
10. Qc2 {[%clk 0:02:19.8]} 10... Bg6 {[%clk 0:02:26.1]} 11. Rac1 {[%clk
0:01:59.3]} 11... a5 {[%clk 0:02:24]} 12. a3 {[%clk 0:01:53.4]} 12... b5 {[%clk
0:02:15.7]} 13. Nd4 {[%clk 0:01:39.4]} 13... Qb6 {[%clk 0:02:14.5]} 14. cxb5
{[%clk 0:01:28.7]} 14... cxb5 {[%clk 0:02:13.8]} 15. Nc6 {[%clk 0:01:13.4]}
15... Bd6 {[%clk 0:02:04.8]} 16. Bd4 {[%clk 0:01:06.1]} 16... Qb7 {[%clk
0:02:01.5]} 17. b4 {[%clk 0:00:52.1]} 17... axb4 {[%clk 0:01:56.7]} 18. axb4
{[%clk 0:00:50.4]} 18... Rfc8 {[%clk 0:01:56.7]} 19. Nb3 {[%clk 0:00:44]} 19...
Ne5 {[%clk 0:01:46.3]} 20. Nba5 {[%clk 0:00:25.7]} 20... Qd7 {[%clk 0:01:26.3]}
21. Bxe5 {[%clk 0:00:15.4]} 21... Bxb4 {[%clk 0:00:38.1]} 22. Qa2 {[%clk
0:00:05.4]} 22... Rxc6 {[%clk 0:00:34.4]} 23. Rxc6 {[%clk 0:00:03.1]} 23... Qxc6
{[%clk 0:00:34.7]} 24. Nxc6 {[%clk 0:00:04.1]} 24... Rxa2 {[%clk 0:00:34.3]} 25.
Nxb4 {[%clk 0:00:05.3]} 25... Rxe2 {[%clk 0:00:34.5]} 26. Bxf6 {[%clk
0:00:05.8]} 26... gxf6 {[%clk 0:00:32.9]} 27. Rb1 {[%clk 0:00:06.4]} 27... Rd2
{[%clk 0:00:33.2]} 28. Bf1 {[%clk 0:00:06.9]} 28... d4 {[%clk 0:00:22.8]} 29.
Nc6 {[%clk 0:00:07.8]} 29... Bxd3 {[%clk 0:00:21.2]} 30. Bxd3 {[%clk 0:00:08.5]}
30... Rxd3 {[%clk 0:00:22.6]} 31. Rxb5 {[%clk 0:00:09.6]} 31... e5 {[%clk
0:00:24]} 32. Ne7+ {[%clk 0:00:07.4]} 32... Kh7 {[%clk 0:00:22.8]} 33. Kf1
{[%clk 0:00:08.1]} 33... Rd1+ {[%clk 0:00:22.7]} 34. Ke2 {[%clk 0:00:09.2]}
34... Ra1 {[%clk 0:00:23.9]} 35. Nd5 {[%clk 0:00:09.4]} 35... Kg7 {[%clk
0:00:23.2]} 36. Rb6 {[%clk 0:00:09.8]} 36... Ra2+ {[%clk 0:00:21.6]} 37. Kf3
{[%clk 0:00:10.7]} 37... Ra3+ {[%clk 0:00:22.7]} 38. Ke4 {[%clk 0:00:10.9]}
38... Ra2 {[%clk 0:00:23.7]} 39. f3 {[%clk 0:00:11.2]} 39... Re2+ {[%clk
0:00:22.9]} 40. Kd3 {[%clk 0:00:11.6]} 40... Rf2 {[%clk 0:00:24.1]} 41. Rxf6
{[%clk 0:00:10.9]} 41... Rxh2 {[%clk 0:00:24.4]} 42. Rf5 {[%clk 0:00:11.9]}
42... Rf2 {[%clk 0:00:23.9]} 43. Ke4 {[%clk 0:00:10.7]} 43... Re2+ {[%clk
0:00:24]} 44. Kd3 {[%clk 0:00:12]} 44... Rf2 {[%clk 0:00:25.1]} 45. g4 {[%clk
0:00:12.7]} 45... Kg6 {[%clk 0:00:19.7]} 46. Nf6 {[%clk 0:00:13.6]} 46... Rf1
{[%clk 0:00:17.3]} 47. Nh5 {[%clk 0:00:13.8]} 47... Rd1+ {[%clk 0:00:17.5]} 48.
Ke4 {[%clk 0:00:14.6]} 48... Re1+ {[%clk 0:00:18.2]} 49. Kd3 {[%clk 0:00:15.6]}
49... Rf1 {[%clk 0:00:19.1]} 50. Ng3 {[%clk 0:00:15.6]} 50... Rf2 {[%clk
0:00:19.2]} 51. Ne4 {[%clk 0:00:16.3]} 51... Rf1 {[%clk 0:00:20.4]} 52. Rf6+
{[%clk 0:00:15.8]} 52... Kg7 {[%clk 0:00:20.8]} 53. Rf5 {[%clk 0:00:15.4]} 53...
Kg6 {[%clk 0:00:18.9]} 54. Nc5 {[%clk 0:00:15.7]} 54... f6 {[%clk 0:00:17.6]}
55. Nd7 {[%clk 0:00:16.3]} 55... Kg7 {[%clk 0:00:17.9]} 56. Nxf6 {[%clk
0:00:17.2]} 56... Kg6 {[%clk 0:00:16.9]} 57. Nd7 {[%clk 0:00:16.5]} 57... Rd1+
{[%clk 0:00:17.4]} 58. Ke2 {[%clk 0:00:16.4]} 58... Ra1 {[%clk 0:00:18.8]} 59.
Nxe5+ {[%clk 0:00:17.2]} 59... Kg7 {[%clk 0:00:20.3]} 60. Kd3 {[%clk 0:00:17.7]}
60... Ra4 {[%clk 0:00:20.4]} 61. Nc6 {[%clk 0:00:17.6]} 61... Kg6 {[%clk
0:00:19.7]} 62. Nxd4 {[%clk 0:00:18.6]} 62... Ra3+ {[%clk 0:00:21.1]} 63. Ke4
{[%clk 0:00:19.7]} 63... Ra4 {[%clk 0:00:22.2]} 64. Rb5 {[%clk 0:00:19.1]} 64...
Ra6 {[%clk 0:00:22.8]} 65. Re5 {[%clk 0:00:18.8]} 65... Ra7 {[%clk 0:00:23.6]}
66. Kf4 {[%clk 0:00:18.9]} 66... Rf7+ {[%clk 0:00:23.8]} 67. Rf5 {[%clk
0:00:19.7]} 67... Rd7 {[%clk 0:00:24.5]} 68. Ke4 {[%clk 0:00:18.9]} 68... Re7+
{[%clk 0:00:25.4]} 69. Re5 {[%clk 0:00:20.4]} 69... Rf7 {[%clk 0:00:26.4]} 70.
f4 {[%clk 0:00:21.4]} 70... Kh7 {[%clk 0:00:26]} 71. Nf5 {[%clk 0:00:20.4]}
71... Rf8 {[%clk 0:00:26.7]} 72. Re6 {[%clk 0:00:21]} 72... h5 {[%clk
0:00:26.6]} 73. gxh5 {[%clk 0:00:21.6]} 73... Kh8 {[%clk 0:00:24.2]} 74. Re7
{[%clk 0:00:22.5]} 74... Rb8 {[%clk 0:00:22.9]} 75. Ke5 {[%clk 0:00:23.3]} 75...
Rb5+ {[%clk 0:00:23.8]} 76. Kf6 {[%clk 0:00:24.3]} 76... Rb6+ {[%clk 0:00:24.7]}
77. Kf7 {[%clk 0:00:21.8]} 77... Rb8 {[%clk 0:00:18.3]} 78. Re8+ {[%clk
0:00:21.3]} 78... Rxe8 {[%clk 0:00:18]} 79. Kxe8 {[%clk 0:00:22.6]} 79... Kh7
{[%clk 0:00:19.9]} 80. Kf7 {[%clk 0:00:23]} 80... Kh8 {[%clk 0:00:20.8]} 81. Nh4
{[%clk 0:00:18.6]} 81... Kh7 {[%clk 0:00:21.9]} 82. f5 {[%clk 0:00:19.9]} 82...
Kh8 {[%clk 0:00:22.2]} 83. f6 {[%clk 0:00:20.8]} 83... Kh7 {[%clk 0:00:24.1]}
84. Kf8 {[%clk 0:00:20.1]} 84... Kh8 {[%clk 0:00:25]} 85. f7 {[%clk 0:00:21.1]}
85... Kh7 {[%clk 0:00:26.3]} 86. Ng6 {[%clk 0:00:21.6]} 86... Kh6 {[%clk
0:00:27]} 87. Kg8 {[%clk 0:00:22.8]} 87... Kxh5 {[%clk 0:00:28.2]} 88. f8=Q
{[%clk 0:00:23.5]} 88... Kxg6 {[%clk 0:00:30.1]} 89. Qf7+ {[%clk 0:00:23.1]}
89... Kg5 {[%clk 0:00:32]} 90. Kg7 {[%clk 0:00:24.1]} 90... Kg4 {[%clk
0:00:33.9]} 91. Kg6 {[%clk 0:00:25.5]} 91... Kg3 {[%clk 0:00:35.1]} 92. Kg5
{[%clk 0:00:26.9]} 92... Kg2 {[%clk 0:00:36.4]} 93. Kg4 {[%clk 0:00:28.6]} 93...
Kg1 {[%clk 0:00:37.3]} 94. Kg3 {[%clk 0:00:28.1]} 94... Kh1 {[%clk 0:00:38.2]}
95. Qf1# {[%clk 0:00:29.1]} 1-0